[Event "*** Titled Tuesday Blitz"]
[Site "Chess.com"]
[Date "2018.06.05"]
[Round "1"]
[White "Jahonas"]
[Black "Iball95"]
[Result "0-1"]
[WhiteElo "2234"]
[BlackElo "2554"]
[TimeControl "180+2"]
[EndTime "13:10:29 PDT"]
[Termination "Iball95 won by resignation"]

1. d4 {[%clk 0:02:58.5]} 1... Nf6 {[%clk 0:02:59.1]} 2. Nf3 {[%clk 0:02:58.9]}
2... e6 {[%clk 0:02:59.8]} 3. c3 {[%clk 0:03:00.1]} 3... d5 {[%clk 0:02:52.5]}
4. Bf4 {[%clk 0:03:00.5]} 4... c5 {[%clk 0:02:53.5]} 5. e3 {[%clk 0:03:00.6]}
5... Bd6 {[%clk 0:02:52.9]} 6. Bxd6 {[%clk 0:03:00.8]} 6... Qxd6 {[%clk
0:02:54.3]} 7. Nbd2 {[%clk 0:03:02.1]} 7... Nc6 {[%clk 0:02:53.9]} 8. Bd3 {[%clk
0:03:03.1]} 8... O-O {[%clk 0:02:49.1]} 9. O-O {[%clk 0:03:03.5]} 9... e5 {[%clk
0:02:50]} 10. dxe5 {[%clk 0:03:04.1]} 10... Nxe5 {[%clk 0:02:51.9]} 11. Be2
{[%clk 0:03:03.1]} 11... Re8 {[%clk 0:02:48.7]} 12. c4 {[%clk 0:02:41.9]} 12...
dxc4 {[%clk 0:02:19]} 13. Nxc4 {[%clk 0:02:40.1]} 13... Nxc4 {[%clk 0:02:20]}
14. Bxc4 {[%clk 0:02:39.4]} 14... Qc7 {[%clk 0:02:14.1]} 15. Ng5 {[%clk
0:02:30.7]} 15... Rf8 {[%clk 0:02:14.9]} 16. Qf3 {[%clk 0:02:25.2]} 16... Bg4
{[%clk 0:02:05.7]} 17. Qg3 {[%clk 0:02:24.3]} 17... Qxg3 {[%clk 0:02:02.5]} 18.
hxg3 {[%clk 0:02:20.4]} 18... Rad8 {[%clk 0:01:55.5]} 19. f3 {[%clk 0:02:07.8]}
19... Bd7 {[%clk 0:01:56.3]} 20. Rfd1 {[%clk 0:02:02.2]} 20... h6 {[%clk
0:01:52.1]} 21. Nh3 {[%clk 0:01:58.4]} 21... Bc6 {[%clk 0:01:46.4]} 22. Nf4
{[%clk 0:01:50.9]} 22... Rfe8 {[%clk 0:01:47]} 23. e4 {[%clk 0:01:45.9]} 23...
g5 {[%clk 0:01:43.2]} 24. Nh3 {[%clk 0:00:56]} 24... Kf8 {[%clk 0:01:32.7]} 25.
g4 {[%clk 0:00:46.9]} 25... Nd7 {[%clk 0:01:27.8]} 26. Bd5 {[%clk 0:00:41.1]}
26... Ne5 {[%clk 0:01:28.2]} 27. Bxc6 {[%clk 0:00:41.5]} 27... Nxc6 {[%clk
0:01:30.1]} 28. Rac1 {[%clk 0:00:37.3]} 28... b6 {[%clk 0:01:30.6]} 29. Kf2
{[%clk 0:00:37.2]} 29... Nb4 {[%clk 0:01:30.6]} 30. Ke3 {[%clk 0:00:27.2]} 30...
Nxa2 {[%clk 0:01:17.3]} 31. Rxd8 {[%clk 0:00:23.7]} 31... Nxc1 {[%clk
0:01:09.1]} 32. Rd7 {[%clk 0:00:24.4]} 32... Re7 {[%clk 0:01:09.8]} 33. Rd8+
{[%clk 0:00:25.6]} 33... Re8 {[%clk 0:01:10.7]} 34. Rd7 {[%clk 0:00:26.2]} 34...
Re7 {[%clk 0:01:12.1]} 35. Rd8+ {[%clk 0:00:27.6]} 35... Kg7 {[%clk 0:01:13.6]}
36. Ng1 {[%clk 0:00:28.7]} 36... Nb3 {[%clk 0:01:14.2]} 37. Ne2 {[%clk
0:00:29.3]} 37... Kf6 {[%clk 0:01:12.6]} 38. Ng3 {[%clk 0:00:29.8]} 38... Nd4
{[%clk 0:01:11.1]} 39. Rd6+ {[%clk 0:00:28.1]} 39... Re6 {[%clk 0:01:11.7]} 40.
Rd7 {[%clk 0:00:29.3]} 40... a6 {[%clk 0:01:06.6]} 41. Nf5 {[%clk 0:00:29.9]}
41... Nxf5+ {[%clk 0:01:06.6]} 42. gxf5 {[%clk 0:00:31.8]} 42... Rc6 {[%clk
0:01:04.3]} 43. f4 {[%clk 0:00:32.6]} 43... b5 {[%clk 0:00:58.3]} 44. g4 {[%clk
0:00:33]} 44... gxf4+ {[%clk 0:00:51.3]} 45. Kxf4 {[%clk 0:00:34.9]} 45... Kg7
{[%clk 0:00:52.1]} 46. e5 {[%clk 0:00:35.7]} 46... Kf8 {[%clk 0:00:53.2]} 47. f6
{[%clk 0:00:33.5]} 47... Rc8 {[%clk 0:00:52.7]} 48. g5 {[%clk 0:00:29.3]} 48...
hxg5+ {[%clk 0:00:52.8]} 49. Kxg5 {[%clk 0:00:30.5]} 49... c4 {[%clk 0:00:54.6]}
50. Rb7 {[%clk 0:00:29.1]} 50... Ke8 {[%clk 0:00:43.9]} 51. Kf5 {[%clk
0:00:29.6]} 51... Rc5 {[%clk 0:00:40.9]} 52. Re7+ {[%clk 0:00:28.2]} 52... Kf8
{[%clk 0:00:41.6]} 53. Rb7 {[%clk 0:00:29.2]} 53... Rc8 {[%clk 0:00:42.3]} 54.
Ke4 {[%clk 0:00:29.4]} 54... Kg8 {[%clk 0:00:37.3]} 55. Rb6 {[%clk 0:00:26.6]}
55... Kh7 {[%clk 0:00:31.9]} 56. Kf5 {[%clk 0:00:27.4]} 56... Rc7 {[%clk
0:00:27]} 57. Ke4 {[%clk 0:00:21.2]} 57... Kg6 {[%clk 0:00:27.5]} 58. Kd5 {[%clk
0:00:22.4]} 58... Kf5 {[%clk 0:00:23.4]} 59. Kd6 {[%clk 0:00:22.1]} 59... Ra7
{[%clk 0:00:23.9]} 60. Rc6 {[%clk 0:00:19.2]} 60... a5 {[%clk 0:00:21.3]} 61.
Rc5 {[%clk 0:00:20.3]} 61... Rb7 {[%clk 0:00:16.6]} 62. Kc6 {[%clk 0:00:20.4]}
62... Rb8 {[%clk 0:00:16.6]} 63. Kc7 {[%clk 0:00:21.2]} 63... Re8 {[%clk
0:00:16.6]} 64. Kd6 {[%clk 0:00:21.5]} 64... Re6+ {[%clk 0:00:17.1]} 65. Kd7
{[%clk 0:00:19]} 65... b4 {[%clk 0:00:14.1]} 66. Rxc4 {[%clk 0:00:18.8]} 66...
Rxe5 {[%clk 0:00:15.2]} 67. Rc6 {[%clk 0:00:18.5]} 67... a4 {[%clk 0:00:14.5]}
68. Rb6 {[%clk 0:00:19.2]} 68... Re4 {[%clk 0:00:15.1]} 0-1

[Event "*** Titled Tuesday Blitz"]
[Site "Chess.com"]
[Date "2018.06.05"]
[Round "1"]
[White "ruvat"]
[Black "Fins0905"]
[Result "0-1"]
[WhiteElo "2283"]
[BlackElo "2597"]
[TimeControl "180+2"]
[EndTime "13:10:44 PDT"]
[Termination "Fins0905 won on time"]

1. d4 {[%clk 0:03:00.8]} 1... d5 {[%clk 0:02:59.1]} 2. c4 {[%clk 0:03:01]} 2...
c6 {[%clk 0:03:00.2]} 3. Nf3 {[%clk 0:03:00.8]} 3... Nf6 {[%clk 0:03:00.6]} 4.
Qc2 {[%clk 0:03:01.6]} 4... dxc4 {[%clk 0:02:59]} 5. Qxc4 {[%clk 0:03:03.5]}
5... Bf5 {[%clk 0:02:59.5]} 6. g3 {[%clk 0:03:04.2]} 6... e6 {[%clk 0:03:00.2]}
7. Bg2 {[%clk 0:03:05.3]} 7... Nbd7 {[%clk 0:03:01.2]} 8. O-O {[%clk 0:03:06.1]}
8... Be7 {[%clk 0:03:02.2]} 9. Qb3 {[%clk 0:03:07]} 9... Qb6 {[%clk 0:03:01.5]}
10. Nbd2 {[%clk 0:03:07.6]} 10... O-O {[%clk 0:02:59.9]} 11. Nc4 {[%clk
0:03:08]} 11... Qxb3 {[%clk 0:02:58]} 12. axb3 {[%clk 0:03:09.9]} 12... Be4
{[%clk 0:02:49.5]} 13. Bf4 {[%clk 0:03:01.7]} 13... Nd5 {[%clk 0:02:18.9]} 14.
Bd6 {[%clk 0:02:57.1]} 14... Rfe8 {[%clk 0:02:15.2]} 15. Bxe7 {[%clk 0:02:56.9]}
15... Rxe7 {[%clk 0:02:16.8]} 16. Nd6 {[%clk 0:02:50.6]} 16... Bxf3 {[%clk
0:02:14.8]} 17. Bxf3 {[%clk 0:02:52.2]} 17... N7f6 {[%clk 0:02:06]} 18. Nc4
{[%clk 0:02:48.7]} 18... a6 {[%clk 0:02:02.9]} 19. Ra5 {[%clk 0:02:40.6]} 19...
Rd8 {[%clk 0:02:01.7]} 20. e3 {[%clk 0:02:39.5]} 20... g6 {[%clk 0:01:49.6]} 21.
Kg2 {[%clk 0:02:39]} 21... h5 {[%clk 0:01:47.8]} 22. h3 {[%clk 0:02:38.8]} 22...
Kg7 {[%clk 0:01:43.7]} 23. Rc1 {[%clk 0:02:35.9]} 23... Rc7 {[%clk 0:01:34.7]}
24. Ne5 {[%clk 0:02:34.6]} 24... Rdc8 {[%clk 0:01:25.9]} 25. Ra4 {[%clk
0:02:29]} 25... Nd7 {[%clk 0:01:23.4]} 26. Nd3 {[%clk 0:02:21.1]} 26... c5
{[%clk 0:01:06.8]} 27. dxc5 {[%clk 0:02:14]} 27... Nxc5 {[%clk 0:01:07.5]} 28.
Nxc5 {[%clk 0:02:07.7]} 28... Rxc5 {[%clk 0:01:08.6]} 29. Rac4 {[%clk
0:02:08.3]} 29... b6 {[%clk 0:00:57.7]} 30. Be2 {[%clk 0:01:54.4]} 30... a5
{[%clk 0:00:55.9]} 31. Bf3 {[%clk 0:01:52.6]} 31... Nb4 {[%clk 0:00:53.5]} 32.
Be2 {[%clk 0:01:43.1]} 32... f5 {[%clk 0:00:49.1]} 33. f4 {[%clk 0:01:36.2]}
33... Kf6 {[%clk 0:00:49.7]} 34. Kf3 {[%clk 0:01:35.2]} 34... e5 {[%clk
0:00:50.8]} 35. Rxc5 {[%clk 0:01:28.7]} 35... Rxc5 {[%clk 0:00:49]} 36. Rxc5
{[%clk 0:01:28]} 36... bxc5 {[%clk 0:00:50.9]} 37. e4 {[%clk 0:01:27.9]} 37...
Nc6 {[%clk 0:00:48.1]} 38. Bc4 {[%clk 0:01:21.7]} 38... Nd4+ {[%clk 0:00:47.1]}
39. Ke3 {[%clk 0:01:21]} 39... g5 {[%clk 0:00:39.2]} 40. h4 {[%clk 0:01:10.5]}
40... exf4+ {[%clk 0:00:36.5]} 41. gxf4 {[%clk 0:01:06.4]} 41... gxh4 {[%clk
0:00:36.5]} 42. e5+ {[%clk 0:01:02.2]} 42... Kg6 {[%clk 0:00:36.1]} 43. Kf2
{[%clk 0:00:54.5]} 43... Nc2 {[%clk 0:00:28.7]} 44. Kf3 {[%clk 0:00:48]} 44...
Ne1+ {[%clk 0:00:23.8]} 45. Kf2 {[%clk 0:00:46.7]} 45... Nc2 {[%clk 0:00:22.7]}
46. Kf3 {[%clk 0:00:47.6]} 46... Nb4 {[%clk 0:00:19.2]} 47. Kf2 {[%clk
0:00:47.1]} 47... Nc6 {[%clk 0:00:19.2]} 48. Kf3 {[%clk 0:00:45.4]} 48... Nd4+
{[%clk 0:00:20]} 49. Kg2 {[%clk 0:00:42.7]} 49... Nc2 {[%clk 0:00:12.6]} 50. Kh3
{[%clk 0:00:21.3]} 50... Ne3 {[%clk 0:00:11.4]} 51. Kxh4 {[%clk 0:00:17.6]}
51... a4 {[%clk 0:00:13]} 52. Be2 {[%clk 0:00:15.8]} 52... axb3 {[%clk
0:00:11.4]} 53. Bxh5+ {[%clk 0:00:15.4]} 53... Kg7 {[%clk 0:00:13]} 54. Be2
{[%clk 0:00:11.3]} 54... c4 {[%clk 0:00:13.7]} 55. Kg5 {[%clk 0:00:10.8]} 55...
Kf7 {[%clk 0:00:14.5]} 56. Kh4 {[%clk 0:00:06.3]} 56... Ke6 {[%clk 0:00:15.6]}
57. Kg5 {[%clk 0:00:07.5]} 57... Kd5 {[%clk 0:00:09.8]} 58. Kf6 {[%clk
0:00:06.8]} 58... Kd4 {[%clk 0:00:10.8]} 59. e6 {[%clk 0:00:07]} 59... c3 {[%clk
0:00:12.1]} 60. bxc3+ {[%clk 0:00:07]} 60... Kxc3 {[%clk 0:00:12.6]} 61. e7
{[%clk 0:00:08.4]} 61... Nd5+ {[%clk 0:00:13.6]} 62. Kxf5 {[%clk 0:00:02.1]}
62... Nxe7+ {[%clk 0:00:15.1]} 63. Ke4 {[%clk 0:00:03]} 63... b2 {[%clk
0:00:16.4]} 64. Bd3 {[%clk 0:00:03.7]} 64... Nd5 {[%clk 0:00:14.7]} 65. Bb1
{[%clk 0:00:03.3]} 65... Kc4 {[%clk 0:00:06.4]} 66. f5 {[%clk 0:00:03.6]} 66...
Nc3+ {[%clk 0:00:06.9]} 0-1

[Event "*** Titled Tuesday Blitz"]
[Site "Chess.com"]
[Date "2018.06.05"]
[Round "1"]
[White "Usurpov"]
[Black "Oleksandr_Bortnyk"]
[Result "1-0"]
[WhiteElo "2433"]
[BlackElo "2785"]
[TimeControl "180+2"]
[EndTime "13:10:48 PDT"]
[Termination "Usurpov won by checkmate"]

1. e4 {[%clk 0:03:01.9]} 1... Nf6 {[%clk 0:02:11.8]} 2. Nc3 {[%clk 0:03:01]}
2... d5 {[%clk 0:02:10.7]} 3. e5 {[%clk 0:03:01.2]} 3... Nfd7 {[%clk 0:02:10.4]}
4. d3 {[%clk 0:03:02.3]} 4... Nxe5 {[%clk 0:02:08.9]} 5. d4 {[%clk 0:03:03.2]}
5... Ng6 {[%clk 0:02:06.4]} 6. Nf3 {[%clk 0:03:03.1]} 6... c6 {[%clk 0:02:01.1]}
7. h4 {[%clk 0:03:03.6]} 7... h5 {[%clk 0:01:39.4]} 8. Bd3 {[%clk 0:03:02.1]}
8... Qd6 {[%clk 0:01:40.1]} 9. Be3 {[%clk 0:02:51.8]} 9... Bg4 {[%clk
0:01:36.8]} 10. Qd2 {[%clk 0:02:49.3]} 10... Bxf3 {[%clk 0:01:21.7]} 11. gxf3
{[%clk 0:02:51.2]} 11... Nd7 {[%clk 0:01:12]} 12. O-O-O {[%clk 0:02:49.6]} 12...
Nb6 {[%clk 0:01:07.7]} 13. Rdg1 {[%clk 0:02:47.8]} 13... Nc4 {[%clk 0:01:01.1]}
14. Qe2 {[%clk 0:02:48.5]} 14... Qb4 {[%clk 0:01:00.5]} 15. Bxc4 {[%clk
0:02:48.9]} 15... Qxc4 {[%clk 0:00:57.1]} 16. Qd2 {[%clk 0:02:36.6]} 16... e6
{[%clk 0:00:52.7]} 17. Kb1 {[%clk 0:02:28.7]} 17... Bb4 {[%clk 0:00:50.7]} 18.
Qd3 {[%clk 0:02:26]} 18... Qxd3 {[%clk 0:00:48.7]} 19. cxd3 {[%clk 0:02:27.9]}
19... a5 {[%clk 0:00:39.3]} 20. Kc2 {[%clk 0:02:26.9]} 20... a4 {[%clk
0:00:40.4]} 21. f4 {[%clk 0:02:27.8]} 21... Rh7 {[%clk 0:00:39]} 22. Rg5 {[%clk
0:02:27.9]} 22... Ne7 {[%clk 0:00:40.2]} 23. Ne2 {[%clk 0:02:27.5]} 23... g6
{[%clk 0:00:40.4]} 24. Rgg1 {[%clk 0:02:22.9]} 24... a3 {[%clk 0:00:35.3]} 25.
b3 {[%clk 0:02:23.7]} 25... Nf5 {[%clk 0:00:34]} 26. Ng3 {[%clk 0:02:22]} 26...
Nd6 {[%clk 0:00:29.7]} 27. Bd2 {[%clk 0:02:21.3]} 27... Bxd2 {[%clk 0:00:30]}
28. Kxd2 {[%clk 0:02:23.2]} 28... Nb5 {[%clk 0:00:31]} 29. Ke3 {[%clk
0:02:24.6]} 29... Kd7 {[%clk 0:00:32.8]} 30. Rc1 {[%clk 0:02:25.6]} 30... Rhh8
{[%clk 0:00:33.9]} 31. Rhe1 {[%clk 0:02:25.8]} 31... Rhe8 {[%clk 0:00:34.8]} 32.
Ne2 {[%clk 0:02:27]} 32... Nd6 {[%clk 0:00:32.6]} 33. Ng3 {[%clk 0:02:26.2]}
33... Ra5 {[%clk 0:00:33.1]} 34. Kf3 {[%clk 0:02:26.5]} 34... Rb5 {[%clk
0:00:32.1]} 35. Rc5 {[%clk 0:02:25.5]} 35... Rb4 {[%clk 0:00:31.6]} 36. Ke3
{[%clk 0:02:24.6]} 36... Ra8 {[%clk 0:00:29.5]} 37. Rec1 {[%clk 0:02:24.9]}
37... Nb5 {[%clk 0:00:28.6]} 38. Ne2 {[%clk 0:02:25.1]} 38... Re8 {[%clk
0:00:29.6]} 39. R5c2 {[%clk 0:02:20.1]} 39... f6 {[%clk 0:00:23.5]} 40. Rg1
{[%clk 0:02:20.3]} 40... e5 {[%clk 0:00:25]} 41. fxe5 {[%clk 0:02:20.9]} 41...
fxe5 {[%clk 0:00:26.1]} 42. Rxg6 {[%clk 0:02:18.9]} 42... exd4+ {[%clk
0:00:27.2]} 43. Kd2 {[%clk 0:02:20.2]} 43... Rf8 {[%clk 0:00:19]} 44. Rg7+
{[%clk 0:02:15.1]} 44... Kc8 {[%clk 0:00:19.1]} 45. f4 {[%clk 0:02:13.7]} 45...
Nd6 {[%clk 0:00:18.6]} 46. Rg5 {[%clk 0:02:11.6]} 46... Rf5 {[%clk 0:00:18.7]}
47. Rc1 {[%clk 0:02:06.7]} 47... Kd7 {[%clk 0:00:19.2]} 48. Rcg1 {[%clk
0:02:06.7]} 48... c5 {[%clk 0:00:20.3]} 49. Rg7+ {[%clk 0:02:05.7]} 49... Kc6
{[%clk 0:00:21.1]} 50. R1g6 {[%clk 0:02:07.2]} 50... Rxb3 {[%clk 0:00:20.9]} 51.
axb3 {[%clk 0:02:06.8]} 51... a2 {[%clk 0:00:21.6]} 52. Rg1 {[%clk 0:02:05.8]}
52... Rf8 {[%clk 0:00:22.7]} 53. R7g5 {[%clk 0:02:04.6]} 53... Ra8 {[%clk
0:00:22.5]} 54. Ra1 {[%clk 0:02:06.2]} 54... Nb5 {[%clk 0:00:22.5]} 55. Rg6+
{[%clk 0:02:04.4]} 55... Kc7 {[%clk 0:00:23.4]} 56. Kc2 {[%clk 0:02:05.5]} 56...
Re8 {[%clk 0:00:23.5]} 57. Kd2 {[%clk 0:02:06.8]} 57... Ra8 {[%clk 0:00:23.8]}
58. Rg5 {[%clk 0:02:06.6]} 58... Kc6 {[%clk 0:00:23.7]} 59. Rxh5 {[%clk
0:02:07.4]} 59... Nd6 {[%clk 0:00:23.3]} 60. Rh6 {[%clk 0:02:07.8]} 60... b5
{[%clk 0:00:24.4]} 61. b4 {[%clk 0:02:05.1]} 61... Ra3 {[%clk 0:00:16.9]} 62.
bxc5 {[%clk 0:02:02.6]} 62... Kxc5 {[%clk 0:00:18.8]} 63. Nc1 {[%clk 0:01:59.5]}
63... Nc4+ {[%clk 0:00:12.5]} 64. dxc4 {[%clk 0:01:58.2]} 64... bxc4 {[%clk
0:00:14.4]} 65. Rh5 {[%clk 0:01:58.5]} 65... Rh3 {[%clk 0:00:16.3]} 66. Rxa2
{[%clk 0:01:58.4]} 66... Rh2+ {[%clk 0:00:17.7]} 67. Kd1 {[%clk 0:01:59.7]}
67... Rh1+ {[%clk 0:00:18.9]} 68. Kc2 {[%clk 0:02:00.1]} 68... Rh2+ {[%clk
0:00:20.3]} 69. Kb1 {[%clk 0:02:01]} 69... Rh1 {[%clk 0:00:21.8]} 70. Ra5+
{[%clk 0:02:01]} 70... Kb4 {[%clk 0:00:22.7]} 71. Raxd5 {[%clk 0:01:59.4]} 71...
d3 {[%clk 0:00:24]} 72. Kb2 {[%clk 0:01:42]} 72... c3+ {[%clk 0:00:21.7]} 73.
Ka2 {[%clk 0:01:41.5]} 73... Rh2+ {[%clk 0:00:18]} 74. Kb1 {[%clk 0:01:41.6]}
74... Rb2+ {[%clk 0:00:09.6]} 75. Ka1 {[%clk 0:01:42.6]} 75... Kc4 {[%clk
0:00:03]} 76. Rc5+ {[%clk 0:01:38.1]} 76... Kd4 {[%clk 0:00:03.4]} 77. Rhd5+
{[%clk 0:01:39.1]} 77... Ke4 {[%clk 0:00:04.5]} 78. Nxd3 {[%clk 0:01:39.9]}
78... Rb8 {[%clk 0:00:05.2]} 79. Nc1 {[%clk 0:01:36]} 79... c2 {[%clk
0:00:05.9]} 80. Re5+ {[%clk 0:01:35.2]} 80... Kxf4 {[%clk 0:00:07.1]} 81. Re1
{[%clk 0:01:35.3]} 81... Ra8+ {[%clk 0:00:05.3]} 82. Kb2 {[%clk 0:01:36.3]}
82... Kg3 {[%clk 0:00:07.2]} 83. Kxc2 {[%clk 0:01:37]} 83... Kxh4 {[%clk
0:00:09.1]} 84. Nd3 {[%clk 0:01:37.1]} 84... Kg4 {[%clk 0:00:10.4]} 85. Kd2
{[%clk 0:01:38]} 85... Kf3 {[%clk 0:00:11.5]} 86. Rf5+ {[%clk 0:01:38.9]} 86...
Kg4 {[%clk 0:00:12.7]} 87. Rf7 {[%clk 0:01:39.9]} 87... Ra2+ {[%clk 0:00:12.1]}
88. Ke3 {[%clk 0:01:41]} 88... Kg3 {[%clk 0:00:13.4]} 89. Rg1+ {[%clk
0:01:41.4]} 89... Kh2 {[%clk 0:00:14.7]} 90. Rg8 {[%clk 0:01:39.4]} 90... Kh1
{[%clk 0:00:13.8]} 91. Rh7+ {[%clk 0:01:36.2]} 91... Rh2 {[%clk 0:00:15.7]} 92.
Nf2# {[%clk 0:01:37.2]} 1-0

[Event "*** Titled Tuesday Blitz"]
[Site "Chess.com"]
[Date "2018.06.05"]
[Round "1"]
[White "Alexander_Moskalenko"]
[Black "GameOverBro"]
[Result "1-0"]
[WhiteElo "2774"]
[BlackElo "2401"]
[TimeControl "180+2"]
[EndTime "13:10:48 PDT"]
[Termination "Alexander_Moskalenko won by resignation"]

1. e4 {[%clk 0:02:33.5]} 1... d6 {[%clk 0:03:00.3]} 2. d4 {[%clk 0:02:33.9]}
2... Nf6 {[%clk 0:03:01.3]} 3. Nc3 {[%clk 0:02:35.8]} 3... e5 {[%clk 0:03:02.4]}
4. dxe5 {[%clk 0:02:36.3]} 4... dxe5 {[%clk 0:03:03.1]} 5. Qxd8+ {[%clk
0:02:38.2]} 5... Kxd8 {[%clk 0:03:04.8]} 6. Bc4 {[%clk 0:02:39.7]} 6... Ke8
{[%clk 0:03:05.7]} 7. Nf3 {[%clk 0:02:37.9]} 7... Bd6 {[%clk 0:03:06.1]} 8. Bg5
{[%clk 0:02:37]} 8... c6 {[%clk 0:02:59]} 9. O-O-O {[%clk 0:02:37]} 9... Bc7
{[%clk 0:02:59.5]} 10. a4 {[%clk 0:02:29.1]} 10... a5 {[%clk 0:02:58.3]} 11. Nd2
{[%clk 0:02:28.3]} 11... Nbd7 {[%clk 0:02:52.9]} 12. f3 {[%clk 0:02:29.1]} 12...
h6 {[%clk 0:02:53.1]} 13. Bh4 {[%clk 0:02:29]} 13... g5 {[%clk 0:02:49.1]} 14.
Bg3 {[%clk 0:02:29.9]} 14... Nh5 {[%clk 0:02:49]} 15. Rhe1 {[%clk 0:02:23]}
15... Nb6 {[%clk 0:02:40.3]} 16. Bf2 {[%clk 0:02:21.1]} 16... Nf4 {[%clk
0:02:36.3]} 17. Bf1 {[%clk 0:02:21.9]} 17... Be6 {[%clk 0:02:33.3]} 18. g3
{[%clk 0:02:20.1]} 18... Ng6 {[%clk 0:02:34.2]} 19. Nb3 {[%clk 0:02:20.2]} 19...
Nd7 {[%clk 0:02:32.1]} 20. Nc5 {[%clk 0:02:19]} 20... Nxc5 {[%clk 0:02:29.8]}
21. Bxc5 {[%clk 0:02:20.9]} 21... b6 {[%clk 0:02:30.9]} 22. Be3 {[%clk
0:02:21.8]} 22... Ke7 {[%clk 0:02:30]} 23. Nb1 {[%clk 0:02:17.6]} 23... Rhd8
{[%clk 0:02:23.4]} 24. Na3 {[%clk 0:02:18.9]} 24... f6 {[%clk 0:02:21.5]} 25. b3
{[%clk 0:02:11.9]} 25... Rxd1+ {[%clk 0:02:17.9]} 26. Rxd1 {[%clk 0:02:12.7]}
26... Rb8 {[%clk 0:02:02.2]} 27. Kb2 {[%clk 0:02:05.7]} 27... h5 {[%clk
0:02:00.1]} 28. Nc4 {[%clk 0:02:05.7]} 28... h4 {[%clk 0:01:59.8]} 29. Be2
{[%clk 0:01:56.2]} 29... Bxc4 {[%clk 0:01:53.4]} 30. Bxc4 {[%clk 0:01:56.4]}
30... hxg3 {[%clk 0:01:54.9]} 31. hxg3 {[%clk 0:01:57]} 31... Rh8 {[%clk
0:01:56.2]} 32. Rd2 {[%clk 0:01:49.5]} 32... Rh3 {[%clk 0:01:52.2]} 33. Bf2
{[%clk 0:01:48.5]} 33... Nf8 {[%clk 0:01:46.2]} 34. Bf1 {[%clk 0:01:48.8]} 34...
Rh1 {[%clk 0:01:44.2]} 35. Ba6 {[%clk 0:01:43.7]} 35... c5 {[%clk 0:01:32.8]}
36. Bc8 {[%clk 0:01:44]} 36... Bd6 {[%clk 0:01:32.5]} 37. c3 {[%clk 0:01:39.2]}
37... Rf1 {[%clk 0:01:30]} 38. Bh3 {[%clk 0:01:38.9]} 38... Rh1 {[%clk
0:01:30.2]} 39. Bg4 {[%clk 0:01:40.4]} 39... Rf1 {[%clk 0:01:15.1]} 40. Kc2
{[%clk 0:01:41.4]} 40... Ra1 {[%clk 0:01:15.2]} 41. Kd3 {[%clk 0:01:41.9]} 41...
Kd8 {[%clk 0:01:11.3]} 42. Kc4 {[%clk 0:01:37]} 42... Kc7 {[%clk 0:01:12.6]} 43.
Bf5 {[%clk 0:01:37.6]} 43... Rf1 {[%clk 0:01:11.2]} 44. Kb5 {[%clk 0:01:34.8]}
44... Rb1 {[%clk 0:01:12.1]} 45. Kc4 {[%clk 0:01:33.5]} 45... Rf1 {[%clk
0:01:13.2]} 46. Kd3 {[%clk 0:01:34.9]} 46... Rb1 {[%clk 0:01:13.8]} 47. Kc2
{[%clk 0:01:30.1]} 47... Rf1 {[%clk 0:01:15.1]} 48. Bh3 {[%clk 0:01:30]} 48...
Rh1 {[%clk 0:01:15.9]} 49. Bg2 {[%clk 0:01:31.2]} 49... Rh2 {[%clk 0:01:16.2]}
50. Bg1 {[%clk 0:01:32.3]} 50... Rh7 {[%clk 0:01:15]} 51. Kd3 {[%clk 0:01:24.5]}
51... Rg7 {[%clk 0:01:06.9]} 52. Bh3 {[%clk 0:01:24.5]} 52... Rh7 {[%clk
0:01:07.1]} 53. Bg4 {[%clk 0:01:23.6]} 53... Rh1 {[%clk 0:01:07.6]} 54. Rd1
{[%clk 0:01:23.1]} 54... Kc6 {[%clk 0:01:00.3]} 55. Ke2 {[%clk 0:01:23]} 55...
Ng6 {[%clk 0:00:55.3]} 56. Be6 {[%clk 0:01:20.1]} 56... Ne7 {[%clk 0:00:54.3]}
57. Kf2 {[%clk 0:01:21.3]} 57... Rh8 {[%clk 0:00:54.1]} 58. Kg2 {[%clk 0:01:21]}
58... Rb8 {[%clk 0:00:51.9]} 59. Bc4 {[%clk 0:01:20.4]} 59... Bc7 {[%clk
0:00:49.3]} 60. Be3 {[%clk 0:01:20.9]} 60... Rd8 {[%clk 0:00:49.9]} 61. Rh1
{[%clk 0:01:22.2]} 61... Rd6 {[%clk 0:00:43.2]} 62. Kf2 {[%clk 0:01:23.1]} 62...
Ng6 {[%clk 0:00:38.3]} 63. Bd5+ {[%clk 0:01:20.8]} 63... Kd7 {[%clk 0:00:36.7]}
64. Rh7+ {[%clk 0:01:21.6]} 64... Ne7 {[%clk 0:00:37.8]} 65. Ke2 {[%clk
0:01:20.5]} 65... Bd8 {[%clk 0:00:38.9]} 66. Bc4 {[%clk 0:01:13.8]} 66... Kc7
{[%clk 0:00:35.9]} 67. Bb5 {[%clk 0:01:12.5]} 67... Re6 {[%clk 0:00:32.8]} 68.
Kd3 {[%clk 0:01:12.1]} 68... Rd6+ {[%clk 0:00:33.9]} 69. Kc2 {[%clk 0:01:13.6]}
69... Re6 {[%clk 0:00:35.3]} 70. Rf7 {[%clk 0:01:13.8]} 70... Rd6 {[%clk
0:00:36.3]} 71. f4 {[%clk 0:01:14.4]} 71... gxf4 {[%clk 0:00:37.2]} 72. gxf4
{[%clk 0:01:15.9]} 72... Re6 {[%clk 0:00:38.7]} 73. f5 {[%clk 0:01:17.3]} 73...
Rd6 {[%clk 0:00:39.3]} 74. Bh6 {[%clk 0:01:16.3]} 74... Kc8 {[%clk 0:00:19.6]}
75. Bg7 {[%clk 0:01:14.8]} 75... Ng8 {[%clk 0:00:18.5]} 76. Bc4 {[%clk
0:01:09.6]} 76... Ne7 {[%clk 0:00:17.8]} 77. Bxf6 {[%clk 0:01:06.7]} 77... Nc6
{[%clk 0:00:18.4]} 78. Bg7 {[%clk 0:00:57]} 78... Ne7 {[%clk 0:00:13]} 79. Be6+
{[%clk 0:00:53.8]} 79... Kb8 {[%clk 0:00:13.5]} 80. Bxe5 {[%clk 0:00:55.2]} 1-0